bitfinex-derivatives/quotes_SOLF0:USTF0_20241231
["timestamp","ask_amount","ask_price","bid_price","bid_amount"]
[1735661848609,2.5206,198.65,198.62,3.28280442]
[1735661848814,18.47244634,198.73,198.62,3.28280442]
[1735661849207,2.5205,198.66,198.62,3.28280442]
[1735661849706,14.69014312,198.73,198.62,3.28280442]
[1735661850609,2.5202,198.68,198.62,5.80370442]
[1735661850808,14.69014312,198.73,198.62,3.28280442]
[1735661851007,6.0082,198.73,198.62,3.28280442]
[1735661851408,2.5203,198.68,198.62,5.80370442]
[1735661852210,14.68585113,198.73,198.62,3.28280442]
[1735661852611,2.5208,198.64,198.62,3.28280442]
[1735661852818,12.18605106,198.71,198.62,3.28280442]
[1735661853316,2.5206,198.65,198.62,3.28280442]
[1735661853515,3.06,198.68,198.62,3.28280442]
[1735661854611,2.5208,198.63,198.62,3.28280442]
[1735661859220,5.5808,198.63,198.62,3.28280442]
[1735661859425,2.5217,198.57,198.52,14.70825106]
[1735661860924,2.5218,198.56,198.52,12.18605106]
[1735661861120,3.06,198.63,198.52,12.18605106]
[1735661861315,12.18605106,198.62,198.51,1.5996]
[1735661861723,12.18605106,198.62,198.5,291.0]
[1735661861920,12.18605106,198.62,198.49,12.18605106]
[1735661862219,2.5222,198.53,198.49,12.18605106]
[1735661862817,3.06,198.57,198.49,12.18605106]
[1735661863022,2.5222,198.52,198.49,12.18605106]
[1735661863622,2.5224,198.51,198.47,291.0]
[1735661864025,3.06,198.57,198.47,291.0]
[1735661864324,2.5223,198.52,198.47,293.5228]
[1735661865227,2.5223,198.52,198.47,2.5228]
[1735661865630,2.522,198.54,198.46,16.30385106]
[1735661865829,3.06,198.57,198.46,13.78095106]
[1735661866229,2.5224,198.51,198.46,16.30385106]
[1735661867033,3.06,198.57,198.46,12.18605106]
[1735661867340,3.056,198.56,198.46,12.18605106]
[1735661867543,3.056,198.56,198.44,292.525]
[1735661867544,15.24205106,198.56,198.43,12.18605106]
[1735661867837,12.18605106,198.53,198.43,12.18605106]
[1735661868048,2.5232,198.45,198.42,3.41771439]
[1735661868336,3.06,198.52,198.4,12.18605106]
[1735661868537,12.18605106,198.5,198.37,13.69755106]
[1735661868743,1.4875,198.49,198.37,13.69755106]
[1735661868942,12.18605106,198.47,198.37,1.5115]
[1735661869137,2.5233,198.44,198.37,1.5115]
[1735661869341,3.06,198.46,198.37,1.5115]
[1735661870342,2.5238,198.4,198.29,291.0]
[1735661870542,12.18605106,198.44,198.31,12.18605106]
[1735661870543,3.08,198.39,198.31,12.18605106]
[1735661870844,2.5242,198.37,198.32,2.5247]
[1735661871046,3.08,198.4,198.32,2.5247]
[1735661871442,3.08,198.4,198.34,12.18605106]
[1735661871647,3.06,198.44,198.35,2.5244]
[1735661872343,2.5238,198.4,198.35,2.5244]
[1735661872640,2.5238,198.4,198.34,14.71055106]
[1735661873352,3.06,198.44,198.34,12.18605106]
[1735661873647,3.06,198.47,198.37,12.18605106]
[1735661874147,3.06,198.47,198.38,2.935]
[1735661874741,2.5235,198.43,198.38,2.935]
[1735661874945,3.06,198.47,198.38,2.935]
[1735661875140,15.24605106,198.47,198.34,303.18605106]
[1735661875440,15.24605106,198.47,198.34,12.18605106]
[1735661875646,1.4906,198.46,198.34,12.18605106]
[1735661875942,12.18605106,198.44,198.31,308.64585106]
[1735661876142,12.18605106,198.44,198.31,15.12105106]
[1735661876337,2.5246,198.34,198.31,15.12105106]
[1735661876751,3.06,198.41,198.31,15.12105106]
[1735661876942,2.5244,198.36,198.31,15.12105106]
[1735661877142,3.06,198.41,198.31,15.12105106]
[1735661877451,15.24605106,198.41,198.31,1.4586]
[1735661877748,15.24605106,198.41,198.28,12.18605106]
[1735661878046,1.5547,198.4,198.28,12.18605106]
[1735661879546,2.5248,198.32,198.28,12.18605106]
[1735661880145,2.5245,198.35,198.3,2.525]
[1735661880449,3.08,198.39,198.31,12.18605106]
[1735661881348,1.5547,198.4,198.31,12.18605106]
[1735661881648,2.5243,198.37,198.31,12.18605106]
[1735661882049,2.5243,198.37,198.32,2.5248]
[1735661882249,3.08,198.41,198.31,12.18605106]
[1735661882454,2.5241,198.38,198.31,15.26605106]
[1735661882654,2.5241,198.38,198.32,1.549]
[1735661882860,2.5238,198.4,198.34,2.5244]
[1735661883043,3.08,198.42,198.34,2.5244]
[1735661883249,3.08,198.42,198.32,292.549]
[1735661884142,2.5245,198.35,198.32,292.549]
[1735661886350,2.5243,198.37,198.32,1.549]
[1735661886547,3.08,198.42,198.32,1.549]
[1735661886952,12.18605106,198.44,198.32,1.549]
[1735661887149,3.08,198.43,198.32,1.549]
[1735661887753,3.08,198.43,198.34,12.18605106]
[1735661887949,3.08,198.43,198.34,14.71045106]
[1735661888150,3.08,198.43,198.34,12.18605106]
[1735661888450,2.5237,198.41,198.34,12.18605106]
[1735661888642,3.08,198.43,198.34,12.18605106]
[1735661889056,2.524,198.38,198.34,12.18605106]
[1735661889449,3.08,198.43,198.34,12.18605106]
[1735661889652,15.16,198.59,198.37,12.18605106]
[1735661889847,14.8597895,198.51,198.37,12.18605106]
[1735661890052,17.9397895,198.51,198.4,12.18605106]
[1735661890248,2.5231,198.45,198.4,12.18605106]
[1735661891354,2.523,198.46,198.41,2.5236]
[1735661891554,2.523,198.46,198.41,4.0109]
[1735661891951,2.5228,198.48,198.43,2.5234]
[1735661892151,2.5228,198.48,198.43,14.70945106]
[1735661892355,2.67373844,198.51,198.43,12.18605106]
[1735661892555,2.523,198.46,198.43,12.18605106]
[1735661892854,2.67373844,198.51,198.43,12.18605106]
[1735661893249,2.523,198.47,198.43,12.18605106]
[1735661894052,2.5229,198.47,198.43,12.18605106]
[1735661894354,3.08,198.51,198.43,12.18605106]
[1735661894561,3.08,198.53,198.43,12.18605106]
[1735661895145,12.18605106,198.54,198.43,12.18605106]
[1735661895347,2.5225,198.51,198.43,310.12125833]
[1735661895954,3.08,198.55,198.43,310.12125833]
[1735661896147,3.08,198.55,198.45,6.93520727]
[1735661896556,2.5229,198.47,198.45,6.93520727]
[1735661897059,2.5229,198.47,198.43,331.21111013]
[1735661897760,12.18605106,198.54,198.43,331.21111013]
[1735661897960,2.5231,198.46,198.43,331.21111013]
[1735661898154,2.5231,198.46,198.43,303.18605106]
[1735661898359,2.5231,198.46,198.43,12.18605106]
[1735661898559,12.18605106,198.54,198.43,12.18605106]
[1735661898754,12.18605106,198.54,198.42,6.93520727]
[1735661899159,2.5224,198.51,198.42,6.93520727]
[1735661899360,3.08,198.5,198.42,6.93520727]
[1735661899761,2.5234,198.43,198.42,6.93520727]
[1735661900259,3.08,198.45,198.39,28.02505907]
[1735661900860,3.08,198.45,198.35,28.02505907]
[1735661901057,15.26605106,198.45,198.35,28.02505907]
[1735661901363,2.5243,198.36,198.35,28.02505907]
[1735661901757,2.5245,198.35,198.32,28.02505907]
[1735661901959,3.06,198.39,198.32,28.02505907]
[1735661902153,15.24605106,198.39,198.32,28.02505907]
[1735661902361,2.5247,198.33,198.32,28.02505907]
[1735661903056,2.5251,198.3,198.28,28.02505907]
[1735661903258,3.06,198.34,198.28,28.02505907]
[1735661903861,3.06,198.34,198.25,6.93520727]
[1735661904062,2.5252,198.29,198.25,6.93520727]
[1735661904263,12.18605106,198.33,198.25,6.93520727]
[1735661904866,12.18605106,198.33,198.22,44.18351013]
[1735661905266,2.5254,198.28,198.22,44.18351013]
[1735661905566,12.18605106,198.33,198.22,44.18351013]
[1735661905567,12.18605106,198.33,198.22,41.65761013]
[1735661905868,3.0181,198.32,198.22,21.0898518]
[1735661906064,3.0181,198.32,198.21,6.93520727]
[1735661906460,3.0181,198.32,198.21,9.46140727]
[1735661906857,3.0181,198.32,198.21,2.5262]
[1735661907058,3.0181,198.32,198.22,12.18605106]
[1735661907271,3.06,198.34,198.22,12.18605106]
[1735661907861,2.5253,198.28,198.22,12.18605106]
[1735661908662,2.5253,198.28,198.22,14.71205106]
[1735661909766,15.15,198.54,198.22,12.18605106]
[1735661909963,6.0353,198.39,198.28,12.18605106]
[1735661910469,2.5246,198.34,198.29,2.5252]
[1735661910665,4.5322,198.39,198.29,2.5252]
[1735661910863,4.5322,198.39,198.28,12.18605106]
[1735661910864,3.08,198.39,198.28,12.18605106]
[1735661911064,3.08,198.39,198.28,15.26605106]
[1735661913173,2.5246,198.34,198.28,17.79135106]
[1735661913765,2.5244,198.36,198.3,2.525]
[1735661913968,3.08,198.39,198.28,15.26605106]
[1735661914467,3.08,198.39,198.29,2.5251]
[1735661915273,2.5243,198.36,198.28,15.26605106]
[1735661915571,3.08,198.44,198.34,12.18605106]
[1735661915967,3.08,198.44,198.34,14.71055106]
[1735661916369,2.5239,198.39,198.34,12.18605106]
[1735661917069,3.08,198.44,198.34,12.18605106]
[1735661917070,2.5241,198.38,198.34,12.18605106]
[1735661917376,3.08,198.44,198.34,12.18605106]
[1735661917672,2.5237,198.41,198.35,4.0656]
[1735661917971,3.08,198.44,198.35,2.9933]
[1735661918676,3.06,198.44,198.35,2.9933]
[1735661919369,3.06,198.44,198.34,291.0]
[1735661920566,2.5244,198.35,198.34,291.0]
[1735661920773,3.06,198.38,198.24,322.08505907]
[1735661921073,12.18605106,198.36,198.24,3.06]
[1735661921367,3.06,198.35,198.23,304.78605106]
[1735661921572,3.06,198.35,198.23,307.31195106]
[1735661922172,2.5253,198.29,198.23,16.31195106]
[1735661922468,3.06,198.35,198.23,16.31195106]
[1735661922469,3.06,198.35,198.24,2.5258]
[1735661923270,2.5247,198.33,198.23,13.78605106]
[1735661923469,3.08,198.35,198.29,12.18605106]
[1735661923669,3.08,198.37,198.29,12.18605106]
[1735661924177,2.5244,198.36,198.3,2.525]
[1735661924477,3.08,198.39,198.29,12.18605106]
[1735661925071,3.08,198.39,198.3,2.5249]
[1735661925373,3.08,198.39,198.29,12.18605106]
[1735661925871,3.08,198.39,198.29,14.71115106]
[1735661925872,2.5245,198.34,198.29,14.71115106]
[1735661926071,3.08,198.39,198.29,12.18605106]
[1735661926675,2.5247,198.33,198.29,12.18605106]
[1735661926874,3.08,198.39,198.29,12.18605106]
[1735661927175,3.08,198.39,198.32,12.18605106]
[1735661927365,2.5242,198.37,198.32,14.71075106]
[1735661927565,4.6527,198.43,198.33,1.5227]
[1735661928476,2.5242,198.37,198.33,1.5227]
[1735661928676,4.6527,198.43,198.33,1.5227]
[1735661929375,16.83875106,198.43,198.33,1.5227]
[1735661930872,2.5244,198.36,198.33,1.5227]
[1735661931280,16.83875106,198.43,198.33,1.5227]
[1735661931479,16.83875106,198.43,198.31,1.527]
[1735661931777,16.83875106,198.43,198.3,303.18605106]
[1735661931969,2.5249,198.32,198.3,12.18605106]
[1735661933177,3.06,198.37,198.3,12.18605106]
[1735661933376,2.5244,198.35,198.3,12.18605106]
[1735661933576,3.06,198.37,198.3,12.18605106]
[1735661933880,2.5244,198.36,198.31,2.5248]
[1735661934080,3.06,198.37,198.3,12.18605106]
[1735661934679,3.06,198.37,198.3,14.71095106]
[1735661934680,2.5245,198.35,198.3,14.71095106]
[1735661935079,3.06,198.37,198.3,14.71095106]
[1735661935380,2.5244,198.35,198.3,14.71095106]
[1735661936484,3.06,198.37,198.3,12.18605106]
[1735661936684,3.06,198.4,198.32,2.5247]
[1735661937392,3.06,198.4,198.33,12.18605106]
[1735661937680,1.5727,198.43,198.33,12.18605106]
[1735661938185,1.5727,198.43,198.33,14.71065106]
[1735661938484,2.5241,198.38,198.33,14.71065106]
[1735661939386,1.5727,198.43,198.33,14.71065106]
[1735661939588,2.5242,198.37,198.33,14.71065106]
[1735661940084,8.66940189,198.45,198.36,12.18605106]
[1735661940484,2.5233,198.44,198.36,15.24605106]
[1735661940684,5.85583088,198.48,198.36,306.24605106]
[1735661941287,5.85583088,198.48,198.38,2.5239]
[1735661941785,5.85583088,198.48,198.39,2.5238]
[1735661942089,5.85583088,198.48,198.36,306.24605106]
[1735661942291,2.5234,198.44,198.36,306.24605106]
[1735661943284,5.85583088,198.48,198.37,2.524]
[1735661943488,18.04188194,198.48,198.34,9.99520727]
[1735661943691,2.5239,198.39,198.35,2.5244]
[1735661943883,6.77682462,198.47,198.34,9.99520727]
[1735661944084,23.02380026,198.47,198.34,9.99520727]
[1735661944386,2.5238,198.4,198.35,2.5244]
[1735661944986,2.5239,198.39,198.35,2.5244]
[1735661946484,3.06,198.43,198.35,2.5244]
[1735661946883,3.06,198.43,198.34,3.06]
[1735661947094,2.524,198.39,198.34,3.06]
[1735661947696,2.5241,198.38,198.35,2.5244]
[1735661947896,3.06,198.43,198.33,291.0]
[1735661948193,12.18605106,198.42,198.33,291.0]
[1735661948387,2.5245,198.34,198.32,1.5441]
[1735661949085,2.5247,198.33,198.32,1.5441]
[1735661949485,2.5248,198.32,198.31,1.5918]
[1735661949890,3.78846983,198.4,198.29,3.06]
[1735661950097,2.5241,198.38,198.29,3.06]
[1735661950298,3.06,198.38,198.29,3.06]
[1735661950600,3.06,198.38,198.27,1.5795]
[1735661950792,2.5253,198.29,198.27,1.5795]
[1735661950991,2.5253,198.29,198.26,4.01]
[1735661951595,2.5251,198.3,198.26,4.01]
[1735661951995,2.5252,198.29,198.26,4.01]
[1735661952390,3.06,198.33,198.23,2.5258]
[1735661952593,2.5257,198.25,198.22,5.3717662]
[1735661952897,15.24605106,198.33,198.21,6.93520727]
[1735661953093,8.66940189,198.32,198.22,12.18605106]
[1735661953299,3.06,198.35,198.25,12.18605106]
[1735661953597,15.24605106,198.43,198.31,12.18605106]
[1735661953893,82.30188974,198.45,198.4,14.70975106]
[1735661954090,2.5234,198.44,198.4,12.18605106]
[1735661954291,82.30188974,198.45,198.4,12.18605106]
[1735661954491,82.30188974,198.45,198.43,2.5234]
[1735661954692,82.30188974,198.45,198.4,12.18605106]
[1735661954894,5.31863088,198.48,198.4,12.18605106]
[1735661955198,2.79583088,198.48,198.42,2.5235]
[1735661955388,2.5228,198.49,198.42,2.5235]
[1735661955589,3.06,198.5,198.42,2.5235]
[1735661956294,3.06,198.5,198.4,12.18605106]
[1735661956496,3.06,198.5,198.42,2.5235]
[1735661957701,8.70397271,198.54,198.43,12.18605106]
[1735661957899,3.06,198.53,198.43,12.18605106]
[1735661959407,2.5224,198.51,198.45,2.5231]
[1735661959604,3.06,198.53,198.43,12.18605106]
[1735661960206,2.5226,198.5,198.43,14.70935106]
[1735661960406,3.06,198.53,198.43,14.70935106]
[1735661960609,3.06,198.53,198.43,12.18605106]
[1735661961001,2.5226,198.5,198.44,2.5233]
[1735661961306,3.06,198.53,198.43,12.18605106]
[1735661962198,2.5229,198.48,198.43,12.18605106]
[1735661963110,3.06,198.53,198.43,12.18605106]
[1735661963306,2.5226,198.5,198.44,2.5232]
[1735661963908,2.5226,198.5,198.45,2.5231]
[1735661964103,2.5224,198.52,198.46,12.18605106]
[1735661964305,3.08,198.54,198.46,12.18605106]
[1735661964897,2.5225,198.51,198.46,12.18605106]
[1735661967110,2.522,198.54,198.48,2.5227]
[1735661967403,3.08,198.57,198.5,12.18605106]
[1735661967805,8.66909931,198.61,198.53,12.18605106]
[1735661968211,2.5212,198.6,198.54,2.5219]
[1735661970014,2.5211,198.61,198.56,14.70775106]
[1735661970913,2.5211,198.61,198.56,12.18605106]
[1735661971511,3.08,198.65,198.56,12.18605106]
[1735661972414,2.521,198.62,198.57,2.5215]
[1735661974922,3.08,198.66,198.56,12.18605106]
[1735661975223,2.5213,198.6,198.56,12.18605106]
[1735661976318,3.08,198.66,198.56,12.18605106]
[1735661976623,2.5214,198.59,198.56,12.18605106]
[1735661977016,3.08,198.67,198.56,12.18605106]
[1735661977319,3.08,198.67,198.59,12.18605106]
[1735661977521,2.5211,198.61,198.59,12.18605106]
[1735661977921,3.08,198.67,198.56,2.5217]
[1735661977922,2.5214,198.59,198.56,12.18605106]
[1735661978119,3.08,198.67,198.56,12.18605106]
[1735661978618,2.5214,198.59,198.56,12.18605106]
[1735661979019,2.5216,198.58,198.53,14.70815106]
[1735661979716,3.08,198.67,198.53,12.18605106]
[1735661979913,12.18605106,198.62,198.5,12.18605106]
[1735661980125,3.08,198.61,198.5,12.18605106]
[1735661980324,4.5864,198.61,198.5,12.18605106]
[1735661980519,2.5221,198.54,198.5,12.18605106]
[1735661980719,4.5864,198.61,198.5,12.18605106]
[1735661980928,12.18605106,198.59,198.48,291.0]
[1735661981222,2.5226,198.49,198.47,12.18605106]
[1735661981422,3.08,198.54,198.47,12.18605106]
[1735661982617,2.5225,198.51,198.47,12.18605106]
[1735661982816,3.08,198.54,198.47,12.18605106]
[1735661983322,2.5229,198.47,198.44,12.18605106]
[1735661984023,3.08,198.49,198.37,350.38161926]
[1735661984213,3.08,198.48,198.39,12.18605106]
[1735661985019,3.08,198.48,198.39,14.70995106]
[1735661985214,12.18605106,198.5,198.37,347.30161926]
[1735661985416,3.08,198.49,198.37,359.48767032]
[1735661985613,2.5232,198.45,198.39,2.5238]
[1735661985920,3.08,198.49,198.4,12.18605106]
[1735661986221,3.08,198.53,198.43,12.18605106]
[1735661986523,4.6853,198.59,198.49,12.18605106]
[1735661986723,2.5217,198.57,198.49,12.18605106]
[1735661987618,2.5217,198.57,198.5,2.5224]
[1735661987817,2.5215,198.58,198.49,12.18605106]
[1735661988223,2.5215,198.58,198.51,2.5223]
[1735661988422,2.5217,198.57,198.48,19.51777434]
[1735661988922,3.08,198.6,198.47,294.08]
[1735661989120,2.5221,198.54,198.47,294.08]
[1735661989328,1.459,198.59,198.47,294.08]
[1735661990321,2.5222,198.53,198.47,3.08]
[1735661990522,2.5222,198.53,198.47,5.6028]
[1735661990826,2.5222,198.53,198.47,2.5228]
[1735661992927,3.08,198.55,198.47,2.5228]
[1735661993226,2.5222,198.52,198.47,2.5228]
[1735661994531,3.08,198.55,198.45,313.50497434]
[1735661994723,3.08,198.55,198.45,2.9872]
[1735661994922,3.08,198.55,198.43,297.91957334]
[1735661995131,2.5223,198.52,198.43,297.91957334]
[1735661995321,3.08,198.55,198.43,297.91957334]
[1735661995823,2.5228,198.48,198.43,293.5234]
[1735661996534,2.5229,198.47,198.42,2.5235]
[1735661997131,2.523,198.46,198.42,2.5235]
[1735661997932,2.5231,198.45,198.4,316.72897434]
[1735661998128,3.12,198.5,198.4,22.60897434]
[1735661998728,2.5232,198.45,198.4,25.13267434]
[1735662000130,2.5229,198.47,198.42,2.5234]
[1735662000436,3.12,198.5,198.4,22.60897434]
[1735662000626,3.12,198.53,198.4,313.60897434]
[1735662000826,2.5227,198.49,198.44,2.5231]
[1735662001335,2.5231,198.45,198.41,2.5235]
[1735662001528,2.5231,198.45,198.4,313.60897434]
[1735662002033,2.5236,198.42,198.39,6.91957334]
[1735662002432,3.12,198.46,198.37,19.51777434]
[1735662002633,2.5234,198.43,198.38,2.5239]
[1735662002931,3.12,198.5,198.4,19.51777434]
[1735662003133,2.5225,198.51,198.46,2.523]
[1735662003434,3.12,198.54,198.46,19.51777434]
[1735662003828,2.5223,198.52,198.47,2.5228]
[1735662004130,3.12,198.54,198.46,19.51777434]
[1735662004332,2.5224,198.51,198.46,22.04077434]
[1735662004535,3.12,198.54,198.46,19.51777434]
[1735662004832,3.12,198.54,198.43,291.0]
[1735662005036,2.5228,198.48,198.43,293.5233]
[1735662005435,2.5231,198.45,198.42,19.51777434]
[1735662005636,3.12,198.49,198.38,323.64674768]
[1735662005837,3.12,198.48,198.38,32.64674768]
[1735662006036,3.12,198.48,198.38,25.72717434]
[1735662006237,2.5232,198.45,198.4,2.5237]
[1735662006933,3.12,198.48,198.38,25.72717434]
[1735662007541,2.523,198.46,198.41,2.5236]
[1735662008439,2.5234,198.43,198.39,2.5239]
[1735662009031,2.5234,198.43,198.38,25.72717434]
[1735662010039,2.5234,198.43,198.39,2.5238]
[1735662010241,2.5234,198.43,198.41,12.21039008]
[1735662011037,2.5232,198.45,198.41,14.73389008]
[1735662011338,8.68332024,198.53,198.44,12.21039008]
[1735662011339,11.80332024,198.53,198.44,12.21039008]
[1735662011535,3.12,198.53,198.44,12.21039008]
[1735662011834,2.5227,198.49,198.45,2.5231]
[1735662012040,3.12,198.53,198.45,2.5231]
[1735662012244,2.5228,198.48,198.44,12.21039008]
[1735662013233,2.5227,198.49,198.44,14.73359008]
[1735662013635,3.12,198.52,198.44,14.73359008]
[1735662013839,2.5228,198.48,198.44,14.73359008]
[1735662014438,3.12,198.52,198.44,14.73359008]
[1735662014439,2.5227,198.49,198.44,14.73359008]
[1735662015139,3.12,198.52,198.44,12.21039008]
[1735662015339,3.12,198.52,198.47,12.21039008]
[1735662015744,2.5219,198.55,198.48,2.5227]
[1735662016039,3.12,198.56,198.47,12.21039008]
[1735662016338,2.5222,198.53,198.48,2.5227]
[1735662017039,3.12,198.56,198.48,2.5227]
[1735662017231,2.5223,198.52,198.48,2.5227]
[1735662017742,3.12,198.56,198.44,19.12996342]
[1735662018137,3.12,198.56,198.44,21.65316342]
[1735662018541,11.80255122,198.56,198.44,6.91957334]
[1735662018742,23.16120937,198.56,198.43,5.6434]
[1735662018940,3.78562949,198.55,198.43,17.85379008]
[1735662019141,14.47891359,198.56,198.43,17.85379008]
[1735662019344,23.16146481,198.56,198.43,17.85379008]
[1735662019543,3.78562949,198.55,198.43,17.85379008]
[1735662020140,2.5228,198.48,198.43,17.85379008]
[1735662020735,2.5228,198.48,198.44,2.5233]
[1735662020933,2.5228,198.48,198.43,15.33039008]
[1735662021333,8.68255122,198.55,198.47,12.21039008]
[1735662021543,8.68255122,198.55,198.53,12.21039008]
[1735662021744,3.78375453,198.65,198.53,15.33039008]
[1735662021940,2.5214,198.59,198.54,2.522]
[1735662022140,11.36239034,198.65,198.53,15.33039008]
[1735662022341,12.46630575,198.65,198.53,15.33039008]
[1735662022641,3.78375453,198.65,198.53,15.31039008]
[1735662023143,2.5213,198.6,198.54,2.522]
[1735662023341,14.46239034,198.65,198.54,2.522]
[1735662023542,23.14494156,198.65,198.53,15.31039008]
[1735662023838,3.78363803,198.64,198.56,12.21039008]
[1735662024036,3.78363803,198.65,198.56,12.21039008]
[1735662024242,2.521,198.62,198.56,12.21039008]
[1735662024840,11.36548469,198.65,198.56,12.21039008]
[1735662025142,3.78363803,198.65,198.56,12.21039008]
[1735662025534,2.5216,198.58,198.53,15.31039008]
[1735662026645,3.78363803,198.64,198.53,15.31039008]
[1735662026843,20.04803591,198.65,198.53,15.31039008]
[1735662027038,3.1,198.65,198.53,17.83239008]
[1735662027243,3.1,198.65,198.53,15.31039008]
[1735662027644,11.78255122,198.65,198.53,17.83239008]
[1735662027945,2.5215,198.59,198.53,17.83239008]
[1735662028345,3.1,198.65,198.53,17.83239008]
[1735662028646,3.1,198.65,198.53,15.31039008]
[1735662028845,2.5215,198.58,198.53,17.83239008]
[1735662029144,14.4551966,198.65,198.53,17.83239008]
[1735662029347,2.521,198.62,198.53,17.83239008]
[1735662029543,8.68255122,198.64,198.53,17.83239008]
[1735662029742,8.68255122,198.64,198.54,2.5219]
[1735662029941,2.5213,198.6,198.54,2.5219]
[1735662030141,2.5213,198.6,198.53,15.31039008]
[1735662030742,3.1,198.65,198.53,15.31039008]
[1735662030949,2.5216,198.58,198.53,2.522]
[1735662031648,2.5216,198.58,198.54,2.5219]
[1735662032052,2.5216,198.58,198.52,303.21039008]
[1735662032746,2.521,198.62,198.56,2.5216]
[1735662032942,3.1,198.65,198.55,12.21039008]
[1735662033146,3.1,198.65,198.55,15.31039008]
[1735662033346,2.521,198.62,198.56,2.5217]
[1735662033649,3.1,198.65,198.55,15.31039008]
[1735662034052,2.5209,198.63,198.58,2.5215]
[1735662034353,3.1,198.65,198.58,2.5215]
[1735662034852,2.5211,198.62,198.57,2.5216]
[1735662035959,3.0676,198.66,198.55,306.31039008]
[1735662036554,11.74820142,198.66,198.55,306.31039008]
[1735662037451,2.5213,198.6,198.56,2.5217]
[1735662037756,2.5213,198.6,198.55,306.31039008]
[1735662037950,2.5213,198.6,198.55,296.6218]
[1735662038150,3.0676,198.66,198.52,303.21039008]
[1735662038350,11.74499513,198.66,198.52,303.21039008]
[1735662038551,11.74499513,198.66,198.53,3.1]
[1735662038747,1.5703,198.66,198.55,12.21039008]
[1735662039353,2.5209,198.63,198.57,2.5216]
[1735662039658,1.5703,198.66,198.57,2.5216]
[1735662039955,2.5209,198.63,198.58,2.5215]
[1735662040155,15.31039008,198.7,198.58,306.31039008]
[1735662040358,2.5207,198.64,198.6,2.5212]
[1735662040564,12.21039008,198.7,198.58,306.31039008]
[1735662041252,8.67295437,198.71,198.61,12.21039008]
[1735662041456,8.67295437,198.71,198.64,12.21039008]
[1735662041658,8.67295437,198.74,198.64,12.21039008]
[1735662041858,8.67295437,198.74,198.64,303.21039008]
[1735662043157,2.5198,198.71,198.64,303.21039008]
[1735662043363,8.67295437,198.74,198.64,303.21039008]
[1735662043861,2.5199,198.71,198.65,2.5205]
[1735662044458,2.52,198.7,198.65,2.5205]
[1735662044662,60.15614953,198.75,198.64,303.21039008]
[1735662044859,60.15614953,198.75,198.66,2.5205]
[1735662045069,4.02545772,198.76,198.67,12.21039008]
[1735662045365,3.053,198.79,198.7,305.73029008]
[1735662045559,2.5193,198.76,198.7,306.31039008]
[1735662046161,2.5193,198.76,198.71,2.5198]
[1735662047468,2.5194,198.75,198.7,296.6199]
[1735662048067,2.5192,198.77,198.71,2.5197]
[1735662048762,3.1,198.83,198.72,12.21039008]
[1735662049159,13.73919008,198.85,198.75,12.21039008]
[1735662049364,2.5187,198.81,198.75,14.72969008]
[1735662049560,2.5187,198.81,198.75,2.5193]
[1735662050361,12.21039008,198.82,198.72,12.21039008]
[1735662050666,12.21039008,198.82,198.7,295.6295]
[1735662050866,2.5197,198.73,198.69,12.21039008]
[1735662051468,3.1,198.8,198.69,12.21039008]
[1735662051771,1.5288,198.85,198.72,12.21039008]
[1735662051772,3.1,198.84,198.72,12.21039008]
[1735662051972,2.5189,198.79,198.74,2.5193]
[1735662052171,16.83919008,198.85,198.72,12.21039008]
[1735662052574,16.83919008,198.85,198.72,15.31039008]
[1735662053570,2.5192,198.77,198.72,17.83009008]
[1735662054965,2.5192,198.77,198.72,308.83009008]
[1735662055160,2.5192,198.76,198.72,308.83009008]
[1735662055358,16.83919008,198.85,198.72,306.31039008]
[1735662055771,16.83919008,198.85,198.68,1.4417]
[1735662055772,2.5195,198.74,198.69,15.31039008]
[1735662055967,12.21039008,198.82,198.69,306.31039008]